[Event "XI Continental-ch America 2016"]
[Site "San Salvador"]
[Date "2016.06.04"]
[Round "10"]
[White "Lenderman, Aleksandr"]
[Black "Morovic Fernandez, Ivan"]
[Result "1-0"]
[ECO "E98"]
[WhiteElo "2614"]
[BlackElo "2572"]
[Annotator "ChessBase"]
[PlyCount "123"]
[EventDate "2016.??.??"]
[EventCountry "ESA"]
[Source "ChessBase"]
[TimeControl "40/5400+30:1800+30"]

1. d4 {[%emt 0:00:00]} Nf6 {[%emt 0:00:00]} 2. c4 {[%emt 0:00:00]} d6 {[%emt 0:
00:02]} 3. Nc3 {[%emt 0:01:06]} g6 {[%emt 0:00:38]} 4. e4 {[%emt 0:00:06]} Bg7
{[%emt 0:00:06]} 5. Nf3 {[%emt 0:00:05]} O-O {[%emt 0:00:06]} 6. Be2 {[%emt 0:
00:03]} e5 {[%emt 0:00:08]} 7. O-O {[%emt 0:00:07]} Nc6 {[%emt 0:00:03]} 8. d5
{[%emt 0:00:07]} Ne7 {[%emt 0:00:05]} 9. Ne1 {[%emt 0:00:05]} Nd7 {[%emt 0:00:
55]} 10. Be3 {[%emt 0:00:09]} f5 {[%emt 0:00:45]} 11. f3 {[%emt 0:00:06]} f4 {
[%emt 0:00:25]} 12. Bf2 {[%emt 0:00:06]} g5 {[%emt 0:00:04]} 13. Nd3 {[%emt 0:
00:07]} Nf6 {[%emt 0:01:24]} 14. c5 {[%emt 0:00:24]} Ng6 {[%emt 0:02:23]} 15.
Rc1 {[%emt 0:00:57]} Rf7 {[%emt 0:03:22]} 16. Kh1 {[%emt 0:00:12]} h5 {[%emt 0:
00:32]} 17. Nb5 {[%emt 0:00:37]} a6 {[%emt 0:38:48]} 18. Na3 {[%emt 0:00:14]}
Bf8 {[%emt 0:00:40]} 19. cxd6 {[%emt 0:01:34]} Bxd6 {[%emt 0:01:07]} 20. Nc5 {
[%emt 0:02:05]} Qe7 {[%emt 0:05:50]} 21. Ne6 {[%emt 0:03:02]} Bxe6 {[%emt 0:02:
54]} 22. dxe6 {[%emt 0:00:16]} Rg7 {[%emt 0:01:28]} 23. Nc4 {[%emt 0:00:33]}
Kh7 {[%emt 0:27:53]} 24. Qb3 {[%emt 0:03:31]} b6 {[%emt 0:00:10]} 25. Nxd6 {
[%emt 0:13:45]} Qxd6 {[%emt 0:00:03]} 26. Rfd1 {[%emt 0:01:15]} Qe7 {[%emt 0:
00:01]} 27. Rc6 {[%emt 0:00:55]} a5 {[%emt 0:02:43]} 28. Be1 {[%emt 0:10:29]}
Rd8 {[%emt 0:01:29]} 29. Rdc1 {[%emt 0:09:48]} Rd6 {[%emt 0:00:32]} 30. Qc4 {
[%emt 0:06:12]} Ne8 {[%emt 0:01:11]} 31. Bc3 {[%emt 0:06:27]} Qf6 {[%emt 0:01:
46]} 32. b4 {[%emt 0:02:44]} axb4 {[%emt 0:02:21]} 33. Bxb4 {[%emt 0:00:18]}
Rd4 {[%emt 0:00:34]} 34. Qb5 {[%emt 0:03:05]} Nd6 {[%emt 0:01:22]} 35. Bxd6 {
[%emt 0:00:33]} cxd6 {[%emt 0:00:24]} 36. Qxb6 {[%emt 0:02:59]} Qxe6 {[%emt 0:
00:42]} 37. R6c4 {[%emt 0:05:18]} Rd2 {[%emt 0:01:27]} 38. R4c2 {[%emt 0:00:08]
} Rd4 {[%emt 0:01:49]} 39. Qd8 {[%emt 0:03:41]} Qe7 {[%emt 0:02:07]} 40. Qc8 {
[%emt 0:02:56]} Qd7 {[%emt 0:01:03]} 41. Qxd7 {[%emt 0:30:31]} Rxd7 {[%emt 0:
30:03]} 42. Kg1 {[%emt 0:06:58]} Kh6 {[%emt 0:00:00]} 43. Bb5 {[%emt 0:00:00]}
Rg7 {[%emt 0:00:00]} 44. Be2 {[%emt 0:00:00]} Nf8 {[%emt 0:00:00]} 45. Rd1 {
[%emt 0:00:00]} Ne6 {[%emt 0:00:00]} 46. Rc6 {[%emt 0:00:00]} Rd7 {[%emt 0:00:
00]} 47. a4 {[%emt 0:00:00]} Kg7 {[%emt 0:00:00]} 48. Ra1 {[%emt 0:00:00]} Rd2
{[%emt 0:00:00]} 49. Bd1 {[%emt 0:00:00]} Nc5 {[%emt 0:00:00]} 50. Rb6 {
[%emt 0:00:00]} d5 {[%emt 0:00:00]} 51. exd5 {[%emt 0:00:00]} R7xd5 {[%emt 0:
00:00]} 52. Rbb1 {[%emt 0:00:00]} R5d3 {[%emt 0:00:00]} 53. a5 {[%emt 0:00:39]}
Re3 {[%emt 0:00:00]} 54. h3 {[%emt 0:00:28]} Re1+ {[%emt 0:01:26]} 55. Kh2 {
[%emt 0:00:01]} Rf2 {[%emt 0:00:40]} 56. Ba4 {[%emt 0:05:36]} Ree2 {[%emt 0:02:
13]} 57. Rg1 {[%emt 0:00:11]} Nxa4 {[%emt 0:02:03]} 58. Rxa4 {[%emt 0:00:15]}
Rxf3 {[%emt 0:00:09]} 59. a6 {[%emt 0:01:35]} g4 {[%emt 0:02:27]} 60. Kh1 {
[%emt 0:04:23]} Rg3 {[%emt 0:01:00]} 61. a7 {[%emt 0:00:49]} f3 {[%emt 0:00:16]
} 62. hxg4 {[%emt 0:02:35]} 1-0

[Event "XI Continental-ch America 2016"]
[Site "San Salvador"]
[Date "2016.06.04"]
[Round "10"]
[White "Liang, Awonder"]
[Black "Mareco, Sandro"]
[Result "0-1"]
[ECO "B42"]
[WhiteElo "2408"]
[BlackElo "2612"]
[Annotator "ChessBase"]
[PlyCount "78"]
[EventDate "2016.??.??"]
[EventCountry "ESA"]
[Source "ChessBase"]
[TimeControl "40/5400+30:1800+30"]

1. e4 {[%emt 0:00:00]} c5 {[%emt 0:00:00]} 2. Nf3 {[%emt 0:00:00]} e6 {[%emt 0:
00:00]} 3. d4 {[%emt 0:00:00]} cxd4 {[%emt 0:00:00]} 4. Nxd4 {[%emt 0:00:00]}
a6 {[%emt 0:00:00]} 5. Bd3 {[%emt 0:00:48]} Bc5 {[%emt 0:00:00]} 6. Nb3 {
[%emt 0:00:07]} Be7 {[%emt 0:00:00]} 7. O-O {[%emt 0:00:43]} d6 {[%emt 0:00:00]
} 8. Nc3 {[%emt 0:00:28]} Nf6 {[%emt 0:00:06]} 9. f4 {[%emt 0:00:26]} Nc6 {
[%emt 0:00:56]} 10. a4 {[%emt 0:04:51]} b6 {[%emt 0:01:03]} 11. Qe2 {[%emt 0:
03:26]} Nd7 {[%emt 0:03:14]} 12. Be3 {[%emt 0:06:09]} Bb7 {[%emt 0:01:42]} 13.
Rad1 {[%emt 0:04:12]} O-O {[%emt 0:04:27]} 14. e5 {[%emt 0:08:27]} dxe5 {
[%emt 0:05:28]} 15. f5 {[%emt 0:02:07]} Nb4 {[%emt 0:23:03]} 16. fxe6 {[%emt 0:
10:15]} fxe6 {[%emt 0:00:09]} 17. Bc4 {[%emt 0:14:08]} Nd5 {[%emt 0:01:34]} 18.
Nxd5 {[%emt 0:09:55]} exd5 {[%emt 0:00:09]} 19. Rxd5 {[%emt 0:01:44]} Kh8 {
[%emt 0:01:47]} 20. Rxf8+ {[%emt 0:04:26]} Bxf8 {[%emt 0:00:05]} 21. Rd1 {
[%emt 0:02:27]} Qe8 {[%emt 0:01:04]} 22. Bd5 {[%emt 0:05:38]} Bxd5 {[%emt 0:01:
35]} 23. Rxd5 {[%emt 0:00:03]} Nf6 {[%emt 0:00:42]} 24. Rd1 {[%emt 0:01:16]}
Qxa4 {[%emt 0:01:52]} 25. Bxb6 {[%emt 0:01:30]} Qc6 {[%emt 0:00:20]} 26. Bf2 {
[%emt 0:03:01]} a5 {[%emt 0:01:47]} 27. c3 {[%emt 0:08:27]} a4 {[%emt 0:08:22]}
28. Nd2 {[%emt 0:00:25]} Re8 {[%emt 0:09:19]} 29. Re1 {[%emt 0:01:18]} Bc5 {
[%emt 0:01:30]} 30. Bxc5 {[%emt 0:03:02]} Qxc5+ {[%emt 0:00:25]} 31. Qf2 {
[%emt 0:01:38]} Qd5 {[%emt 0:00:39]} 32. h3 {[%emt 0:01:16]} h6 {[%emt 0:08:29]
} 33. Qe3 {[%emt 0:01:18]} Rb8 {[%emt 0:02:18]} 34. Ne4 {[%emt 0:00:33]} Rxb2 {
[%emt 0:02:50]} 35. Qf3 {[%emt 0:01:22]} a3 {[%emt 0:05:33]} 36. c4 {[%emt 0:
00:24]} Qa8 {[%emt 0:00:11]} 37. Nc3 {[%emt 0:01:01]} Qa5 {[%emt 0:01:05]} 38.
Ra1 {[%emt 0:00:31]} Rb3 {[%emt 0:00:40]} 39. Qf5 {[%emt 0:00:34]} Qc5+ {
[%emt 0:00:14]} 0-1

[Event "XI Continental-ch America 2016"]
[Site "San Salvador"]
[Date "2016.06.04"]
[Round "10"]
[White "Oliva Castaneda, Kevel"]
[Black "Gonzalez Vidal, Yuri"]
[Result "1/2-1/2"]
[ECO "A40"]
[WhiteElo "2500"]
[BlackElo "2555"]
[Annotator "ChessBase"]
[PlyCount "83"]
[EventDate "2016.??.??"]
[EventCountry "ESA"]
[Source "ChessBase"]
[TimeControl "40/5400+30:1800+30"]

1. d4 {[%emt 0:00:00]} Nf6 {[%emt 0:00:00]} 2. c4 {[%emt 0:00:00]} e6 {[%emt 0:
00:00]} 3. g3 {[%emt 0:00:00]} d5 {[%emt 0:02:19]} 4. Nf3 {[%emt 0:00:00]} Bb4+
{[%emt 0:04:32]} 5. Bd2 {[%emt 0:00:00]} Be7 {[%emt 0:00:17]} 6. Bg2 {[%emt 0:
00:07]} O-O {[%emt 0:00:18]} 7. O-O {[%emt 0:00:04]} c6 {[%emt 0:00:38]} 8. Qc2
{[%emt 0:00:12]} b6 {[%emt 0:00:39]} 9. Bf4 {[%emt 0:00:12]} Nbd7 {[%emt 0:03:
47]} 10. Rd1 {[%emt 0:01:49]} Ba6 {[%emt 0:03:32]} 11. cxd5 {[%emt 0:04:32]}
cxd5 {[%emt 0:06:41]} 12. Ne5 {[%emt 0:00:15]} Bb7 {[%emt 0:11:31]} 13. Nc6 {
[%emt 0:03:07]} Bxc6 {[%emt 0:00:26]} 14. Qxc6 {[%emt 0:00:03]} Qc8 {[%emt 0:
00:50]} 15. Rc1 {[%emt 0:02:32]} Qxc6 {[%emt 0:03:18]} 16. Rxc6 {[%emt 0:00:07]
} Rac8 {[%emt 0:01:27]} 17. Rxc8 {[%emt 0:00:08]} Rxc8 {[%emt 0:00:07]} 18. Nc3
{[%emt 0:00:04]} a6 {[%emt 0:06:58]} 19. Rc1 {[%emt 0:00:13]} b5 {[%emt 0:02:
23]} 20. Nd1 {[%emt 0:02:25]} Rxc1 {[%emt 0:02:04]} 21. Bxc1 {[%emt 0:02:51]}
Nb8 {[%emt 0:01:29]} 22. e3 {[%emt 0:03:32]} Nc6 {[%emt 0:01:15]} 23. Bf1 {
[%emt 0:00:55]} Ne4 {[%emt 0:08:08]} 24. Bd3 {[%emt 0:00:54]} f5 {[%emt 0:10:
53]} 25. f3 {[%emt 0:03:39]} Nd6 {[%emt 0:00:10]} 26. b3 {[%emt 0:01:33]} Kf7 {
[%emt 0:00:34]} 27. Nf2 {[%emt 0:00:28]} g6 {[%emt 0:08:32]} 28. Be2 {[%emt 0:
05:20]} Nb4 {[%emt 0:12:13]} 29. a3 {[%emt 0:00:13]} Nc6 {[%emt 0:00:13]} 30.
Nd3 {[%emt 0:00:25]} Nb7 {[%emt 0:00:39]} 31. Kf2 {[%emt 0:01:04]} Bd6 {
[%emt 0:00:59]} 32. Bb2 {[%emt 0:09:43]} Nba5 {[%emt 0:01:23]} 33. Bd1 {
[%emt 0:00:06]} b4 {[%emt 0:01:42]} 34. a4 {[%emt 0:00:56]} Nb7 {[%emt 0:01:25]
} 35. Be2 {[%emt 0:00:16]} a5 {[%emt 0:02:03]} 36. Ne1 {[%emt 0:03:41]} e5 {
[%emt 0:01:33]} 37. Bb5 {[%emt 0:02:40]} Nbd8 {[%emt 0:00:06]} 38. Nd3 {
[%emt 0:04:34]} e4 {[%emt 0:00:59]} 39. fxe4 {[%emt 0:00:47]} fxe4 {[%emt 0:00:
05]} 40. Nf4 {[%emt 0:00:39]} Ne7 {[%emt 0:02:15]} 41. h3 {[%emt 0:33:26]} Ne6
{[%emt 0:02:53]} 42. Nxe6 {[%emt 0:00:00]} 1/2-1/2

[Event "XI Continental-ch America 2016"]
[Site "San Salvador"]
[Date "2016.06.04"]
[Round "10"]
[White "Bruzon Batista, Lazaro"]
[Black "Arenas, David"]
[Result "0-1"]
[ECO "B77"]
[WhiteElo "2681"]
[BlackElo "2496"]
[Annotator "ChessBase"]
[PlyCount "54"]
[EventDate "2016.??.??"]
[EventCountry "ESA"]
[Source "ChessBase"]
[TimeControl "40/5400+30:1800+30"]

1. e4 {[%emt 0:00:00]} c5 {[%emt 0:00:00]} 2. Nf3 {[%emt 0:00:00]} d6 {[%emt 0:
00:00]} 3. d4 {[%emt 0:00:00]} Nf6 {[%emt 0:00:12]} 4. Nc3 {[%emt 0:00:00]}
cxd4 {[%emt 0:00:08]} 5. Nxd4 {[%emt 0:00:00]} g6 {[%emt 0:01:29]} 6. Be3 {
[%emt 0:00:52]} Bg7 {[%emt 0:03:40]} 7. f3 {[%emt 0:00:42]} O-O {[%emt 0:00:56]
} 8. Qd2 {[%emt 0:00:08]} Nc6 {[%emt 0:00:03]} 9. Bc4 {[%emt 0:00:06]} Bd7 {
[%emt 0:00:13]} 10. h4 {[%emt 0:01:06]} Rc8 {[%emt 0:02:02]} 11. Bb3 {[%emt 0:
00:15]} h5 {[%emt 0:00:16]} 12. O-O-O {[%emt 0:02:10]} Ne5 {[%emt 0:00:06]} 13.
Bg5 {[%emt 0:03:12]} Rc5 {[%emt 0:00:42]} 14. Kb1 {[%emt 0:00:24]} Re8 {
[%emt 0:00:24]} 15. Rhe1 {[%emt 0:00:20]} b5 {[%emt 0:07:47]} 16. f4 {[%emt 0:
05:56]} Nc4 {[%emt 0:00:36]} 17. Bxc4 {[%emt 0:00:08]} bxc4 {[%emt 0:06:29]}
18. e5 {[%emt 0:53:17]} Qb6 {[%emt 0:07:26]} 19. exf6 {[%emt 0:05:24]} Rb8 {
[%emt 0:00:38]} 20. Ndb5 {[%emt 0:03:02]} exf6 {[%emt 0:07:11]} 21. Qxd6 {
[%emt 0:00:07]} Bxb5 {[%emt 0:05:49]} 22. Qxb6 {[%emt 0:12:23]} axb6 {[%emt 0:
04:20]} 23. Ne4 {[%emt 0:00:28]} Rc6 {[%emt 0:00:15]} 24. Nc3 {[%emt 0:00:15]}
Rc5 {[%emt 0:02:43]} 25. Ne4 {[%emt 0:00:05]} fxg5 {[%emt 0:01:21]} 26. Nxc5 {
[%emt 0:00:05]} bxc5 {[%emt 0:00:02]} 27. fxg5 {[%emt 0:06:56]} Bc6 {[%emt 0:
01:48]} 0-1

[Event "XI Continental-ch America 2016"]
[Site "San Salvador"]
[Date "2016.06.04"]
[Round "10"]
[White "Erenburg, Sergey"]
[Black "Cordova, Emilio"]
[Result "0-1"]
[ECO "C03"]
[WhiteElo "2587"]
[BlackElo "2602"]
[Annotator "ChessBase"]
[PlyCount "140"]
[EventDate "2016.??.??"]
[EventCountry "ESA"]
[Source "ChessBase"]
[TimeControl "40/5400+30:1800+30"]

1. e4 {[%emt 0:00:00]} e6 {[%emt 0:00:00]} 2. d4 {[%emt 0:00:00]} d5 {[%emt 0:
00:00]} 3. Nd2 {[%emt 0:00:00]} Be7 {[%emt 0:00:14]} 4. Ngf3 {[%emt 0:00:00]}
Nf6 {[%emt 0:00:23]} 5. e5 {[%emt 0:00:00]} Nfd7 {[%emt 0:00:06]} 6. Bd3 {
[%emt 0:00:00]} c5 {[%emt 0:00:06]} 7. c3 {[%emt 0:00:00]} Nc6 {[%emt 0:00:05]}
8. O-O {[%emt 0:00:04]} g5 {[%emt 0:00:08]} 9. dxc5 {[%emt 0:00:06]} Ndxe5 {
[%emt 0:00:15]} 10. Nxe5 {[%emt 0:03:04]} Nxe5 {[%emt 0:00:06]} 11. Nb3 {
[%emt 0:00:05]} a5 {[%emt 0:51:27]} 12. f4 {[%emt 0:10:38]} Nxd3 {[%emt 0:00:
04]} 13. Qxd3 {[%emt 0:00:10]} Qc7 {[%emt 0:04:45]} 14. fxg5 {[%emt 0:05:13]}
e5 {[%emt 0:01:14]} 15. Be3 {[%emt 0:13:09]} Be6 {[%emt 0:00:37]} 16. Rae1 {
[%emt 0:02:38]} Rg8 {[%emt 0:04:27]} 17. Rf2 {[%emt 0:06:26]} Bxg5 {[%emt 0:02:
09]} 18. Qxh7 {[%emt 0:08:38]} O-O-O {[%emt 0:00:23]} 19. Bxg5 {[%emt 0:00:04]}
Rxg5 {[%emt 0:00:09]} 20. Qh4 {[%emt 0:01:12]} Rg4 {[%emt 0:02:34]} 21. Qh5 {
[%emt 0:27:49]} Re4 {[%emt 0:00:47]} 22. Ref1 {[%emt 0:01:53]} a4 {[%emt 0:03:
09]} 23. Nd2 {[%emt 0:00:27]} Qxc5 {[%emt 0:01:01]} 24. Nxe4 {[%emt 0:06:59]}
dxe4 {[%emt 0:07:47]} 25. Rd1 {[%emt 0:04:58]} Rxd1+ {[%emt 0:00:11]} 26. Qxd1
{[%emt 0:00:02]} e3 {[%emt 0:00:06]} 27. Re2 {[%emt 0:00:06]} Bg4 {[%emt 0:00:
36]} 28. h3 {[%emt 0:01:16]} Bxe2 {[%emt 0:00:04]} 29. Qxe2 {[%emt 0:00:01]} a3
{[%emt 0:00:45]} 30. Kf1 {[%emt 0:02:37]} f5 {[%emt 0:00:26]} 31. bxa3 {
[%emt 0:01:33]} Qxc3 {[%emt 0:00:39]} 32. Kg1 {[%emt 0:06:16]} Kb8 {[%emt 0:02:
29]} 33. h4 {[%emt 0:00:28]} Qc1+ {[%emt 0:01:07]} 34. Kh2 {[%emt 0:00:35]} Qd2
{[%emt 0:01:32]} 35. Qb5 {[%emt 0:00:11]} Qd4 {[%emt 0:00:25]} 36. h5 {[%emt 0:
00:46]} e4 {[%emt 0:02:30]} 37. h6 {[%emt 0:00:29]} e2 {[%emt 0:02:36]} 38.
Qxe2 {[%emt 0:00:02]} Qd6+ {[%emt 0:00:04]} 39. Kg1 {[%emt 0:00:44]} Qxh6 {
[%emt 0:00:05]} 40. Qb5 {[%emt 0:00:46]} Qc1+ {[%emt 0:03:23]} 41. Kf2 {
[%emt 0:08:15]} Qd2+ {[%emt 0:00:01]} 42. Kf1 {[%emt 0:04:30]} Qd1+ {[%emt 0:
05:50]} 43. Kf2 {[%emt 0:00:08]} Qd4+ {[%emt 0:00:05]} 44. Ke2 {[%emt 0:06:09]}
f4 {[%emt 0:00:33]} 45. Qe8+ {[%emt 0:04:58]} Ka7 {[%emt 0:00:06]} 46. Qb5 {
[%emt 0:00:04]} Qe3+ {[%emt 0:01:20]} 47. Kf1 {[%emt 0:06:04]} Qc1+ {[%emt 0:
01:25]} 48. Ke2 {[%emt 0:00:20]} Qxa3 {[%emt 0:00:12]} 49. Qd5 {[%emt 0:00:29]}
Qb4 {[%emt 0:03:18]} 50. Kd1 {[%emt 0:00:39]} Qa4+ {[%emt 0:03:48]} 51. Ke1 {
[%emt 0:00:23]} Qb4+ {[%emt 0:01:44]} 52. Kd1 {[%emt 0:00:01]} e3 {[%emt 0:04:
11]} 53. Ke2 {[%emt 0:00:14]} Qb2+ {[%emt 0:04:56]} 54. Kf3 {[%emt 0:00:01]}
Qf2+ {[%emt 0:00:08]} 55. Kg4 {[%emt 0:00:01]} Qd2 {[%emt 0:00:24]} 56. Qc5+ {
[%emt 0:00:08]} Ka6 {[%emt 0:00:05]} 57. a4 {[%emt 0:05:52]} e2 {[%emt 0:13:06]
} 58. Qb5+ {[%emt 0:00:28]} Ka7 {[%emt 0:00:05]} 59. Qc5+ {[%emt 0:00:04]} Kb8
{[%emt 0:01:33]} 60. Qf8+ {[%emt 0:00:29]} Kc7 {[%emt 0:00:27]} 61. Qc5+ {
[%emt 0:00:22]} Kd7 {[%emt 0:00:08]} 62. Qb5+ {[%emt 0:00:09]} Kd6 {[%emt 0:00:
31]} 63. Qb6+ {[%emt 0:00:14]} Ke5 {[%emt 0:02:33]} 64. Qc5+ {[%emt 0:00:18]}
Ke4 {[%emt 0:00:25]} 65. Qc4+ {[%emt 0:01:56]} Ke3 {[%emt 0:00:05]} 66. Qxf4+ {
[%emt 0:00:16]} Kd3 {[%emt 0:00:04]} 67. Qf5+ {[%emt 0:00:27]} Kc3 {[%emt 0:00:
12]} 68. Qa5+ {[%emt 0:01:02]} Kc2 {[%emt 0:00:08]} 69. Qf5+ {[%emt 0:00:22]}
Qd3 {[%emt 0:00:48]} 70. Qc5+ {[%emt 0:00:34]} Kd1 {[%emt 0:00:11]} 0-1

[Event "XI Continental-ch America 2016"]
[Site "San Salvador"]
[Date "2016.06.04"]
[Round "10"]
[White "Barrientos, Sergio E"]
[Black "Kovalyov, Anton"]
[Result "0-1"]
[ECO "B47"]
[WhiteElo "2460"]
[BlackElo "2602"]
[Annotator "ChessBase"]
[PlyCount "80"]
[EventDate "2016.??.??"]
[EventCountry "ESA"]
[Source "ChessBase"]
[TimeControl "40/5400+30:1800+30"]

1. e4 {[%emt 0:00:00]} c5 {[%emt 0:00:00]} 2. Nf3 {[%emt 0:00:00]} e6 {[%emt 0:
00:00]} 3. d4 {[%emt 0:01:35]} cxd4 {[%emt 0:00:00]} 4. Nxd4 {[%emt 0:00:04]}
Nc6 {[%emt 0:00:01]} 5. Nc3 {[%emt 0:01:05]} Qc7 {[%emt 0:00:47]} 6. f4 {
[%emt 0:00:05]} a6 {[%emt 0:00:18]} 7. Nxc6 {[%emt 0:00:05]} bxc6 {[%emt 0:00:
06]} 8. Bd3 {[%emt 0:02:03]} d5 {[%emt 0:00:48]} 9. O-O {[%emt 0:00:17]} Nf6 {
[%emt 0:00:17]} 10. Qe2 {[%emt 0:00:28]} Be7 {[%emt 0:00:52]} 11. Kh1 {[%emt 0:
02:46]} Bb7 {[%emt 0:07:28]} 12. Bd2 {[%emt 0:01:06]} c5 {[%emt 0:17:42]} 13.
b3 {[%emt 0:02:18]} O-O {[%emt 0:09:37]} 14. Rae1 {[%emt 0:06:39]} c4 {[%emt 0:
01:05]} 15. bxc4 {[%emt 0:00:22]} dxe4 {[%emt 0:01:08]} 16. Nxe4 {[%emt 0:00:
07]} Nxe4 {[%emt 0:00:19]} 17. Bxe4 {[%emt 0:00:05]} Bxe4 {[%emt 0:00:07]} 18.
Qxe4 {[%emt 0:00:08]} Rac8 {[%emt 0:00:47]} 19. f5 {[%emt 0:19:29]} Qxc4 {
[%emt 0:00:29]} 20. Qe3 {[%emt 0:00:48]} Qxa2 {[%emt 0:06:26]} 21. Bc3 {
[%emt 0:09:28]} Qa3 {[%emt 0:03:53]} 22. Ba1 {[%emt 0:28:09]} Qxe3 {[%emt 0:00:
10]} 23. Rxe3 {[%emt 0:00:05]} Rxc2 {[%emt 0:01:00]} 24. fxe6 {[%emt 0:00:47]}
fxe6 {[%emt 0:01:01]} 25. Rd1 {[%emt 0:02:27]} Rd2 {[%emt 0:05:38]} 26. Rb1 {
[%emt 0:01:52]} Rdf2 {[%emt 0:01:07]} 27. Ree1 {[%emt 0:03:14]} Bb4 {[%emt 0:
00:09]} 28. Rec1 {[%emt 0:03:47]} a5 {[%emt 0:00:22]} 29. h3 {[%emt 0:00:16]}
h6 {[%emt 0:02:20]} 30. Bd4 {[%emt 0:01:47]} R2f4 {[%emt 0:02:39]} 31. Bb6 {
[%emt 0:00:25]} R8f5 {[%emt 0:01:14]} 32. Ra1 {[%emt 0:01:10]} Kh7 {[%emt 0:00:
50]} 33. Bc7 {[%emt 0:03:42]} Re4 {[%emt 0:00:25]} 34. Rc6 {[%emt 0:03:03]} a4
{[%emt 0:01:41]} 35. g4 {[%emt 0:03:03]} Rf3 {[%emt 0:02:22]} 36. Kg2 {[%emt 0:
01:04]} Rb3 {[%emt 0:04:57]} 37. Rxa4 {[%emt 0:00:52]} Re2+ {[%emt 0:00:08]}
38. Kf1 {[%emt 0:00:21]} Rd2 {[%emt 0:00:12]} 39. Rc1 {[%emt 0:02:09]} Ba3 {
[%emt 0:00:58]} 40. Ra1 {[%emt 0:00:51]} Rxh3 {[%emt 0:00:39]} 0-1

[Event "XI Continental-ch America 2016"]
[Site "San Salvador"]
[Date "2016.06.04"]
[Round "10"]
[White "Duran Vega, Sergio"]
[Black "Flores, Diego"]
[Result "1/2-1/2"]
[ECO "A46"]
[WhiteElo "2298"]
[BlackElo "2592"]
[Annotator "ChessBase"]
[PlyCount "160"]
[EventDate "2016.??.??"]
[EventCountry "ESA"]
[Source "ChessBase"]
[TimeControl "40/5400+30:1800+30"]

1. d4 Nf6 {[%emt 0:00:57]} 2. Nf3 {[%emt 0:00:00]} c5 {[%emt 0:00:30]} 3. c3 {
[%emt 0:00:20]} e6 {[%emt 0:02:05]} 4. Bf4 {[%emt 0:00:20]} Nc6 {[%emt 0:00:30]
} 5. e3 {[%emt 0:00:30]} Be7 {[%emt 0:02:29]} 6. h3 {[%emt 0:07:42]} b6 {
[%emt 0:03:58]} 7. Bd3 {[%emt 0:00:35]} Bb7 {[%emt 0:01:43]} 8. O-O {[%emt 0:
01:19]} O-O {[%emt 0:03:33]} 9. Qe2 {[%emt 0:00:08]} cxd4 {[%emt 0:11:51]} 10.
exd4 {[%emt 0:01:06]} d6 {[%emt 0:01:29]} 11. Nbd2 {[%emt 0:02:00]} Re8 {
[%emt 0:04:07]} 12. Bg3 {[%emt 0:02:37]} g6 {[%emt 0:12:15]} 13. Rfe1 {[%emt 0:
00:57]} Rc8 {[%emt 0:05:42]} 14. Rad1 {[%emt 0:01:44]} Nb8 {[%emt 0:00:56]} 15.
Ne4 {[%emt 0:02:40]} Nxe4 {[%emt 0:00:38]} 16. Bxe4 {[%emt 0:00:08]} Bxe4 {
[%emt 0:00:08]} 17. Qxe4 {[%emt 0:00:03]} Nd7 {[%emt 0:00:04]} 18. Qd3 {
[%emt 0:08:26]} Qc7 {[%emt 0:01:24]} 19. Nd2 {[%emt 0:02:21]} Nf6 {[%emt 0:06:
11]} 20. Bh4 {[%emt 0:03:27]} Nd5 {[%emt 0:07:04]} 21. Bxe7 {[%emt 0:00:23]}
Qxe7 {[%emt 0:00:20]} 22. Nf1 {[%emt 0:07:39]} Qd7 {[%emt 0:10:19]} 23. Ne3 {
[%emt 0:02:18]} Nf6 {[%emt 0:00:49]} 24. Ng4 {[%emt 0:00:51]} Nxg4 {[%emt 0:00:
25]} 25. hxg4 {[%emt 0:00:03]} b5 {[%emt 0:00:12]} 26. a3 {[%emt 0:04:32]} a5 {
[%emt 0:02:38]} 27. Qd2 {[%emt 0:01:51]} d5 {[%emt 0:07:11]} 28. g5 {[%emt 0:
03:07]} Rc4 {[%emt 0:04:03]} 29. Re3 {[%emt 0:01:51]} b4 {[%emt 0:00:19]} 30.
axb4 {[%emt 0:00:06]} axb4 {[%emt 0:00:01]} 31. Rh3 {[%emt 0:01:39]} Qc7 {
[%emt 0:01:59]} 32. Re1 {[%emt 0:01:38]} Rc8 {[%emt 0:00:35]} 33. Rc1 {[%emt 0:
05:17]} Ra8 {[%emt 0:04:13]} 34. Rf3 {[%emt 0:09:38]} Ra2 {[%emt 0:00:58]} 35.
g3 {[%emt 0:00:54]} Qa7 {[%emt 0:01:38]} 36. Kg2 {[%emt 0:04:48]} bxc3 {
[%emt 0:00:35]} 37. Rfxc3 {[%emt 0:00:18]} Qxd4 {[%emt 0:00:25]} 38. Qxd4 {
[%emt 0:01:12]} Rxd4 {[%emt 0:00:01]} 39. Rc8+ {[%emt 0:00:11]} Kg7 {[%emt 0:
00:01]} 40. Rb8 {[%emt 0:00:14]} Rc4 {[%emt 0:04:46]} 41. Rxc4 {[%emt 0:30:07]}
dxc4 {[%emt 0:30:01]} 42. Rb4 {[%emt 0:00:55]} h6 {[%emt 0:00:00]} 43. gxh6+ {
[%emt 0:00:00]} Kxh6 {[%emt 0:00:00]} 44. Rxc4 {[%emt 0:00:00]} Rxb2 {[%emt 0:
00:00]} 45. Rc5 {[%emt 0:00:00]} g5 {[%emt 0:00:00]} 46. g4 {[%emt 0:00:00]}
Kg6 {[%emt 0:00:00]} 47. Rc6 {[%emt 0:00:00]} Kf6 {[%emt 0:00:00]} 48. Kg3 {
[%emt 0:00:00]} Rd2 {[%emt 0:00:00]} 49. Rc7 {[%emt 0:00:00]} Rd3+ {[%emt 0:00:
00]} 50. f3 {[%emt 0:00:00]} Rd2 {[%emt 0:00:00]} 51. Ra7 {[%emt 0:00:00]} Kg6
{[%emt 0:00:00]} 52. Ra6 {[%emt 0:00:00]} Re2 {[%emt 0:00:00]} 53. Rb6 {
[%emt 0:00:00]} Kf6 {[%emt 0:00:00]} 54. Ra6 {[%emt 0:00:00]} Rd2 {[%emt 0:00:
00]} 55. Rb6 {[%emt 0:00:00]} Ke5 {[%emt 0:00:00]} 56. Rb5+ {[%emt 0:00:00]}
Rd5 {[%emt 0:00:00]} 57. Rb6 {[%emt 0:00:26]} Ra5 {[%emt 0:00:00]} 58. Rc6 {
[%emt 0:01:13]} f5 {[%emt 0:04:31]} 59. gxf5 {[%emt 0:00:40]} exf5 {[%emt 0:00:
02]} 60. Rg6 {[%emt 0:02:13]} Ra1 {[%emt 0:04:31]} 61. Rxg5 {[%emt 0:00:28]}
Rg1+ {[%emt 0:00:02]} 62. Kh4 {[%emt 0:00:03]} Rf1 {[%emt 0:00:14]} 63. Kg3 {
[%emt 0:01:02]} Rg1+ {[%emt 0:00:15]} 64. Kh4 {[%emt 0:00:00]} Ra1 {[%emt 0:00:
27]} 65. Kg3 {[%emt 0:00:06]} Rg1+ {[%emt 0:00:28]} 66. Kh4 {[%emt 0:00:08]}
Rh1+ {[%emt 0:00:26]} 67. Kg3 {[%emt 0:00:13]} Kf6 {[%emt 0:00:19]} 68. f4 {
[%emt 0:00:06]} Rg1+ {[%emt 0:00:25]} 69. Kf3 {[%emt 0:00:17]} Rxg5 {[%emt 0:
00:08]} 70. fxg5+ {[%emt 0:00:01]} Kxg5 {[%emt 0:00:06]} 71. Kg3 {[%emt 0:00:
04]} f4+ {[%emt 0:00:09]} 72. Kf3 {[%emt 0:00:13]} Kf5 {[%emt 0:00:01]} 73. Kf2
{[%emt 0:00:05]} Ke4 {[%emt 0:00:04]} 74. Ke2 {[%emt 0:00:02]} f3+ {[%emt 0:00:
03]} 75. Kf2 {[%emt 0:00:02]} Kf4 {[%emt 0:00:04]} 76. Kf1 {[%emt 0:00:02]} Kf5
{[%emt 0:00:04]} 77. Kf2 {[%emt 0:00:03]} Kg4 {[%emt 0:00:02]} 78. Kf1 {
[%emt 0:00:03]} Kg3 {[%emt 0:00:03]} 79. Kg1 {[%emt 0:00:04]} f2+ {[%emt 0:00:
03]} 80. Kf1 {[%emt 0:00:02]} Kf3 {[%emt 0:00:04]} 1/2-1/2